fUSD/lending_fUSD_20250729
["ID","MTS","AMOUNT","RATE_DAILY","PERIOD"]
[376038485,1753833051003,-4496.15507419,0.00016991,2]
[376038486,1753833051012,-1997.55445691,0.00017038,2]
[376038487,1753833051022,-216.43197226,0.00017052,2]
[376038488,1753833051031,-4621.3800717,0.0001707,2]
[376038489,1753833051041,-150.0,0.00017081,2]
[376038490,1753833051051,-588.0,0.00017104,3]
[376038491,1753833051060,-588.0,0.00017105,3]
[376038492,1753833051070,-1997.55445691,0.00017107,2]
[376038493,1753833051079,-224.25641759,0.00017143,2]
[376038494,1753833051089,-302.0,0.00017151,2]
[376038495,1753833051099,-400.0,0.00017152,2]
[376038496,1753833051108,-228.62,0.00017152,2]
[376038497,1753833051118,-400.0,0.00017152,2]
[376038498,1753833051127,-400.0,0.00017152,2]
[376038499,1753833051137,-400.0,0.00017152,2]
[376038500,1753833051147,-400.0,0.00017152,2]
[376038501,1753833051156,-185.67,0.00017152,2]
[376038502,1753833051165,-221.46,0.00017152,2]
[376038503,1753833051175,-400.0,0.00017152,2]
[376038504,1753833051185,-430.58,0.00017152,2]
[376038505,1753833051194,-400.0,0.00017152,2]
[376038506,1753833051203,-400.0,0.00017152,2]
[376038507,1753833051212,-397.9,0.00017152,2]
[376038508,1753833051221,-400.0,0.00017152,2]
[376038509,1753833051231,-400.0,0.00017152,2]
[376038510,1753833051240,-565.34,0.00017152,2]
[376038511,1753833051249,-400.0,0.00017152,2]
[376038512,1753833051259,-400.0,0.00017152,2]
[376038513,1753833051269,-400.0,0.00017152,2]
[376038514,1753833051278,-1154.88,0.00017152,2]
[376038515,1753833051287,-400.0,0.00017152,2]
[376038516,1753833051297,-632.04,0.00017152,2]
[376038517,1753833051307,-400.0,0.00017152,2]
[376038518,1753833051316,-400.0,0.00017152,2]
[376038519,1753833051325,-400.0,0.00017152,2]
[376038520,1753833051335,-2225.21,0.00017152,2]
[376038521,1753833051345,-525.27,0.00017152,2]
[376038522,1753833051354,-400.0,0.00017152,2]
[376038523,1753833051364,-682.08,0.00017152,2]
[376038524,1753833051374,-318.05,0.00017152,2]
[376038525,1753833051383,-1142.53,0.00017152,2]
[376038526,1753833051392,-254.18,0.00017152,2]
[376038527,1753833051401,-400.0,0.00017152,2]
[376038528,1753833051411,-1128.07,0.00017152,2]
[376038529,1753833051421,-400.0,0.00017152,2]
[376038530,1753833051430,-176.59,0.00017152,2]
[376038531,1753833051439,-400.0,0.00017152,2]
[376038532,1753833051448,-858.74,0.00017152,2]
[376038533,1753833051457,-199.4078275,0.00017152,2]
[376038534,1753833051466,-400.0,0.00017152,2]
[376038535,1753833051476,-400.0,0.00017153,2]
[376038536,1753833051486,-453.34,0.00017153,2]
[376038537,1753833051496,-400.0,0.00017153,2]
[376038538,1753833051505,-400.0,0.00017153,2]
[376038539,1753833051514,-400.0,0.00017153,2]
[376038540,1753833051523,-400.0,0.00017153,2]
[376038541,1753833051532,-400.0,0.00017153,2]
[376038542,1753833051542,-288.31,0.00017153,2]
[376038543,1753833051551,-400.0,0.00017153,2]
[376038544,1753833051561,-525.78066447,0.00017153,2]
[376038545,1753833051570,-521.22,0.00017153,2]
[376038546,1753833051580,-400.0,0.00017153,2]
[376038547,1753833051589,-400.0,0.00017153,2]
[376038548,1753833051599,-400.0,0.00017153,2]
[376038549,1753833051608,-362.83847868,0.00017153,2]
[376038550,1753833051617,-400.0,0.00017153,2]
[376038551,1753833051627,-400.0,0.00017153,2]
[376038552,1753833051636,-400.0,0.00017153,2]
[376038553,1753833051645,-400.0,0.00017153,2]
[376038554,1753833051654,-400.0,0.00017153,2]
[376038555,1753833051664,-400.0,0.00017153,2]
[376038556,1753833051674,-400.0,0.00017153,2]
[376038557,1753833051684,-400.0,0.00017153,2]
[376038558,1753833051694,-400.0,0.00017153,2]
[376038559,1753833051703,-400.0,0.00017153,2]
[376038560,1753833051714,-400.0,0.00017153,2]
[376038561,1753833051724,-415.46,0.00017153,2]
[376038562,1753833051734,-619.46,0.00017153,2]
[376038563,1753833051743,-400.0,0.00017153,2]
[376038564,1753833051753,-436.47,0.00017153,2]
[376038565,1753833051763,-1333.7,0.00017153,2]
[376038566,1753833051774,-585.08,0.00017153,2]
[376038567,1753833051783,-400.0,0.00017153,2]
[376038568,1753833051792,-400.0,0.00017153,2]
[376038569,1753833051801,-400.0,0.00017153,2]
[376038570,1753833051811,-400.0,0.00017153,2]
[376038571,1753833051820,-400.0,0.00017153,2]
[376038572,1753833051829,-400.0,0.00017153,2]
[376038573,1753833051839,-1453.47,0.00017153,2]
[376038574,1753833051848,-400.0,0.00017153,2]
[376038575,1753833051857,-400.0,0.00017153,2]
[376038576,1753833051871,-579.95,0.00017153,2]
[376038577,1753833051880,-482.57,0.00017153,2]
[376038578,1753833051889,-400.0,0.00017153,2]
[376038579,1753833051898,-518.41,0.00017153,2]
[376038580,1753833051909,-400.0,0.00017153,2]
[376038581,1753833051918,-400.0,0.00017153,2]
[376038582,1753833051928,-443.67,0.00017153,2]
[376038583,1753833051938,-400.0,0.00017153,2]
[376038584,1753833051948,-400.0,0.00017153,2]
[376038585,1753833051958,-400.0,0.00017153,2]
[376038586,1753833051967,-524.44,0.00017153,2]
[376038587,1753833051977,-400.0,0.00017153,2]
[376038588,1753833051988,-400.0,0.00017153,2]
[376038589,1753833051998,-430.15,0.00017153,2]
[376038590,1753833052009,-400.0,0.00017153,2]
[376038591,1753833052018,-400.0,0.00017153,2]
[376038592,1753833052029,-491.86,0.00017153,2]
[376038593,1753833052040,-1314.04,0.00017153,2]
[376038594,1753833052051,-400.0,0.00017153,2]
[376038595,1753833052061,-400.0,0.00017153,2]
[376038596,1753833052071,-400.0,0.00017153,2]
[376038597,1753833052081,-734.19,0.00017153,2]
[376038598,1753833052091,-400.0,0.00017153,2]
[376038599,1753833052102,-474.92,0.00017153,2]
[376038600,1753833052113,-950.72,0.00017153,2]
[376038601,1753833052124,-530.11,0.00017153,2]
[376038602,1753833052134,-400.0,0.00017153,2]
[376038603,1753833052144,-400.0,0.00017153,2]
[376038604,1753833052154,-464.8,0.00017153,2]
[376038605,1753833052164,-400.0,0.00017153,2]
[376038606,1753833052174,-507.41,0.00017153,2]
[376038607,1753833052184,-832.04,0.00017153,2]
[376038608,1753833052194,-400.0,0.00017153,2]
[376038609,1753833052204,-400.0,0.00017153,2]
[376038610,1753833052214,-579.27,0.00017153,2]
[376038611,1753833052234,-400.0,0.00017153,2]
[376038612,1753833052246,-375.6,0.00017153,2]
[376038613,1753833052259,-536.29,0.00017153,2]
[376038614,1753833052269,-522.24,0.00017153,2]
[376038615,1753833052281,-691.16,0.00017153,2]
[376038616,1753833052291,-412.22,0.00017153,2]
[376038617,1753833052300,-550.12,0.00017153,2]
[376038618,1753833052310,-400.0,0.00017153,2]
[376038619,1753833052320,-400.0,0.00017153,2]
[376038620,1753833052334,-361.51,0.00017153,2]
[376038621,1753833052345,-744.54,0.00017153,2]
[376038622,1753833052355,-400.0,0.00017153,2]
[376038623,1753833052365,-431.84,0.00017153,2]
[376038624,1753833052374,-400.0,0.00017153,2]
[376038625,1753833052383,-400.0,0.00017153,2]
[376038626,1753833052393,-165.67,0.00017153,2]
[376038627,1753833052405,-400.0,0.00017153,2]
[376038628,1753833052416,-516.63,0.00017153,2]
[376038629,1753833052427,-572.49,0.00017153,2]
[376038630,1753833052436,-400.0,0.00017153,2]
[376038631,1753833052446,-1191.95,0.00017153,2]
[376038632,1753833052457,-400.0,0.00017153,2]
[376038633,1753833052468,-400.0,0.00017153,2]
[376038634,1753833052479,-439.25,0.00017153,2]
[376038635,1753833052489,-400.0,0.00017153,2]
[376038636,1753833052499,-406.04,0.00017153,2]
[376038637,1753833052511,-465.76,0.00017153,2]
[376038638,1753833052521,-437.27,0.00017153,2]
[376038639,1753833052530,-700.3,0.00017153,2]
[376038640,1753833052540,-400.0,0.00017153,2]
[376038641,1753833052555,-400.0,0.00017153,2]
[376038642,1753833052569,-400.0,0.00017153,2]
[376038643,1753833052578,-591.12,0.00017153,2]
[376038644,1753833052587,-481.15,0.00017153,2]
[376038645,1753833052596,-400.0,0.00017153,2]
[376038646,1753833052606,-419.37,0.00017153,2]
[376038647,1753833052615,-400.0,0.00017153,2]
[376038648,1753833052625,-400.0,0.00017153,2]
[376038649,1753833052634,-3156.69,0.00017153,2]
[376038650,1753833052643,-400.0,0.00017153,2]
[376038651,1753833052653,-732.58,0.00017153,2]
[376038652,1753833052662,-400.0,0.00017153,2]
[376038653,1753833052672,-400.0,0.00017153,2]
[376038654,1753833052682,-400.0,0.00017153,2]
[376038655,1753833052691,-400.0,0.00017153,2]
[376038656,1753833052700,-576.68,0.00017153,2]
[376038657,1753833052709,-400.0,0.00017153,2]
[376038658,1753833052719,-422.29,0.00017153,2]
[376038659,1753833052728,-722.45,0.00017153,2]
[376038660,1753833052738,-400.0,0.00017153,2]
[376038661,1753833052747,-603.55,0.00017153,2]
[376038662,1753833052756,-400.0,0.00017153,2]
[376038663,1753833052766,-424.53,0.00017153,2]
[376038664,1753833052775,-400.0,0.00017153,2]
[376038665,1753833052784,-887.31,0.00017153,2]
[376038666,1753833052794,-400.0,0.00017153,2]
[376038667,1753833052803,-400.0,0.00017153,2]
[376038668,1753833052812,-444.83,0.00017153,2]
[376038669,1753833052822,-400.0,0.00017153,2]
[376038670,1753833052831,-400.0,0.00017153,2]
[376038671,1753833052840,-555.74,0.00017153,2]
[376038672,1753833052850,-400.0,0.00017153,2]
[376038673,1753833052863,-489.8,0.00017153,2]
[376038674,1753833052875,-400.0,0.00017153,2]
[376038675,1753833052884,-400.0,0.00017153,2]
[376038676,1753833052894,-400.0,0.00017153,2]
[376038677,1753833052903,-650.89,0.00017153,2]
[376038678,1753833052912,-400.0,0.00017153,2]
[376038679,1753833052921,-1454.26,0.00017153,2]
[376038680,1753833052931,-437.86,0.00017153,2]
[376038681,1753833052943,-400.0,0.00017153,2]
[376038682,1753833052952,-400.0,0.00017153,2]
[376038683,1753833052962,-400.04,0.00017153,2]
[376038684,1753833052972,-620.31,0.00017153,2]
[376038685,1753833052981,-400.0,0.00017153,2]
[376038686,1753833052991,-739.52,0.00017153,2]
[376038687,1753833053000,-400.0,0.00017153,2]
[376038688,1753833053010,-285.64,0.00017153,2]
[376038689,1753833053020,-400.0,0.00017153,2]
[376038690,1753833053029,-400.0,0.00017153,2]
[376038691,1753833053039,-728.94,0.00017153,2]
[376038692,1753833053050,-400.0,0.00017153,2]
[376038693,1753833053061,-1291.38,0.00017153,2]
[376038694,1753833053070,-772.2,0.00017153,2]
[376038695,1753833053081,-424.57,0.00017153,2]
[376038696,1753833053091,-540.21,0.00017153,2]
[376038697,1753833053101,-511.87,0.00017153,2]
[376038698,1753833053112,-505.33,0.00017153,2]
[376038699,1753833053123,-400.0,0.00017153,2]
[376038700,1753833053133,-151.0,0.00017153,2]
[376038701,1753833053143,-606.17,0.00017153,2]
[376038702,1753833053153,-1109.04,0.00017153,2]
[376038703,1753833053164,-457.38,0.00017153,2]
[376038704,1753833053174,-400.0,0.00017153,2]
[376038705,1753833053185,-400.0,0.00017153,2]
[376038706,1753833053195,-400.0,0.00017153,2]
[376038707,1753833053205,-151.0,0.00017153,2]
[376038708,1753833053216,-400.0,0.00017153,2]
[376038709,1753833053227,-479.29,0.00017153,2]
[376038710,1753833053237,-390.24,0.00017153,2]
[376038711,1753833053247,-400.0,0.00017153,2]
[376038712,1753833053256,-400.0,0.00017153,2]
[376038713,1753833053266,-435.38,0.00017153,2]
[376038714,1753833053277,-699.8,0.00017153,2]
[376038715,1753833053288,-400.0,0.00017153,2]
[376038716,1753833053300,-779.72,0.00017153,2]
[376038717,1753833053311,-400.0,0.00017153,2]
[376038718,1753833053323,-151.0,0.00017153,2]
[376038719,1753833053334,-692.81,0.00017153,2]
[376038720,1753833053347,-400.0,0.00017153,2]
[376038721,1753833053358,-1246.63,0.00017153,2]
[376038722,1753833053369,-400.0,0.00017153,2]
[376038723,1753833053379,-524.19,0.00017153,2]
[376038724,1753833053391,-555.62,0.00017153,2]
[376038725,1753833053400,-151.0,0.00017153,2]
[376038726,1753833053411,-400.0,0.00017153,2]
[376038727,1753833053422,-400.0,0.00017153,2]
[376038728,1753833053432,-151.0,0.00017153,2]
[376038729,1753833053442,-499.39,0.00017153,2]
[376038730,1753833053452,-582.23,0.00017153,2]
[376038731,1753833053464,-400.0,0.00017153,2]
[376038732,1753833053475,-400.0,0.00017153,2]
[376038733,1753833053485,-400.0,0.00017153,2]
[376038734,1753833053495,-496.11,0.00017153,2]
[376038735,1753833053505,-528.91,0.00017153,2]
[376038736,1753833053515,-4045.83,0.00017153,2]
[376038737,1753833053525,-400.0,0.00017153,2]
[376038738,1753833053536,-400.0,0.00017153,2]
[376038739,1753833053546,-639.17,0.00017153,2]
[376038740,1753833053556,-400.0,0.00017153,2]
[376038741,1753833053565,-400.0,0.00017153,2]
[376038742,1753833053575,-400.0,0.00017153,2]
[376038743,1753833053585,-711.8,0.00017153,2]
[376038744,1753833053595,-400.0,0.00017153,2]
[376038745,1753833053606,-400.0,0.00017153,2]
[376038746,1753833053616,-400.0,0.00017153,2]
[376038747,1753833053626,-407.48,0.00017153,2]
[376038748,1753833053636,-1582.3,0.00017153,2]
[376038749,1753833053646,-672.55,0.00017153,2]
[376038750,1753833053655,-403.85,0.00017153,2]
[376038751,1753833053666,-400.0,0.00017153,2]
[376038752,1753833053675,-400.0,0.00017153,2]
[376038753,1753833053686,-534.41,0.00017153,2]
[376038754,1753833053696,-410.12952027,0.00017153,2]
[376038755,1753833053706,-400.0,0.00017153,2]
[376038756,1753833053716,-1537.28,0.00017153,2]
[376038757,1753833053727,-400.0,0.00017153,2]
[376038758,1753833053737,-400.0,0.00017153,2]
[376038759,1753833053747,-1365.25,0.00017153,2]
[376038760,1753833053757,-418.08,0.00017153,2]
[376038761,1753833053766,-187.193857,0.00017153,2]
[376038762,1753833053776,-400.0,0.00017153,2]
[376038763,1753833053786,-400.0,0.00017153,2]
[376038764,1753833053796,-187.193857,0.00017153,2]
[376038765,1753833053806,-400.0,0.00017153,2]
[376038766,1753833053816,-1075.51,0.00017153,2]
[376038767,1753833053826,-400.0,0.00017153,2]
[376038768,1753833053836,-480.42,0.00017153,2]
[376038769,1753833053847,-1060.19,0.00017153,2]
[376038770,1753833053859,-533.67,0.00017153,2]
[376038771,1753833053872,-500.96,0.00017153,2]
[376038772,1753833053883,-681.23,0.00017153,2]
[376038773,1753833053895,-1771.2,0.00017153,2]
[376038774,1753833053908,-436.99,0.00017153,2]
[376038775,1753833053920,-501.28,0.00017153,2]
[376038776,1753833053930,-574.21,0.00017153,2]
[376038777,1753833053943,-1864.71,0.00017153,2]
[376038778,1753833053955,-675.46,0.00017153,2]
[376038779,1753833053965,-414.24,0.00017153,2]
[376038780,1753833053975,-157.211962,0.00017153,2]
[376038781,1753833053986,-1214.13,0.00017153,2]
[376038782,1753833053996,-1494.63,0.00017153,2]
[376038783,1753833054007,-22618.95,0.00017153,2]
[376038784,1753833054016,-400.0,0.00017153,2]
[376038785,1753833054027,-440.69,0.00017153,2]
[376038786,1753833054037,-625.91,0.00017153,2]
[376038787,1753833054047,-400.0,0.00017153,2]
[376038788,1753833054057,-435.24,0.00017153,2]
[376038789,1753833054068,-707.01,0.00017153,2]
[376038790,1753833054079,-2792.39,0.00017153,2]
[376038791,1753833054089,-400.0,0.00017153,2]
[376038792,1753833054100,-400.0,0.00017153,2]
[376038793,1753833054110,-151.0,0.00017153,2]
[376038794,1753833054120,-2115.41,0.00017153,2]
[376038795,1753833054130,-481.84,0.00017153,2]
[376038796,1753833054140,-400.0,0.00017153,2]
[376038797,1753833054152,-400.0,0.00017153,2]
[376038798,1753833054163,-400.0,0.00017153,2]
[376038799,1753833054174,-762.01,0.00017153,2]
[376038800,1753833054185,-504.91,0.00017153,2]
[376038801,1753833054195,-400.0,0.00017153,2]
[376038802,1753833054205,-1654.81,0.00017153,2]
[376038803,1753833054215,-400.0,0.00017153,2]
[376038804,1753833054225,-2295.75,0.00017153,2]
[376038805,1753833054236,-2237.96,0.00017153,2]
[376038806,1753833054247,-987.8,0.00017153,2]
[376038807,1753833054256,-1629.16,0.00017153,2]
[376038808,1753833054267,-400.0,0.00017153,2]
[376038809,1753833054277,-1423.23,0.00017153,2]
[376038810,1753833054287,-685.28,0.00017153,2]
[376038811,1753833054297,-832.18,0.00017153,2]
[376038812,1753833054307,-400.0,0.00017153,2]
[376038813,1753833054317,-400.0,0.00017153,2]
[376038814,1753833054327,-400.0,0.00017153,2]
[376038815,1753833054337,-788.04,0.00017153,2]
[376038816,1753833054347,-497.59,0.00017153,2]
[376038817,1753833054357,-813.88,0.00017153,2]
[376038818,1753833054368,-1020.08,0.00017153,2]
[376038819,1753833054378,-495.08,0.00017153,2]
[376038820,1753833054388,-1004.06,0.00017153,2]
[376038821,1753833054399,-2213.8,0.00017153,2]
[376038822,1753833054410,-400.0,0.00017153,2]
[376038823,1753833054420,-151.0,0.00017153,2]
[376038824,1753833054431,-400.0,0.00017153,2]
[376038825,1753833054441,-400.0,0.00017153,2]
[376038826,1753833054452,-400.0,0.00017153,2]
[376038827,1753833054463,-564.09,0.00017153,2]
[376038828,1753833054475,-872.39,0.00017153,2]
[376038829,1753833054485,-1396.61,0.00017153,2]
[376038830,1753833054496,-400.0,0.00017153,2]
[376038831,1753833054506,-563.03,0.00017153,2]
[376038832,1753833054517,-1121.05,0.00017153,2]
[376038833,1753833054527,-400.0,0.00017153,2]
[376038834,1753833054537,-1266.22,0.00017153,2]
[376038835,1753833054547,-691.63,0.00017153,2]
[376038836,1753833054557,-2978.1,0.00017153,2]
[376038837,1753833054567,-400.0,0.00017153,2]
[376038838,1753833054578,-400.0,0.00017153,2]
[376038839,1753833054588,-932.95,0.00017153,2]
[376038840,1753833054599,-1015.44,0.00017153,2]
[376038841,1753833054609,-1077.3,0.00017153,2]
[376038842,1753833054619,-400.0,0.00017153,2]
[376038843,1753833054629,-400.0,0.00017153,2]
[376038844,1753833054639,-400.0,0.00017153,2]
[376038845,1753833054650,-400.0,0.00017153,2]
[376038846,1753833054660,-865.56,0.00017153,2]
[376038847,1753833054671,-400.0,0.00017153,2]
[376038848,1753833054681,-400.0,0.00017153,2]
[376038849,1753833054692,-677.26,0.00017153,2]
[376038850,1753833054702,-3158.55,0.00017153,2]
[376038851,1753833054713,-662.67,0.00017153,2]
[376038852,1753833054723,-400.0,0.00017153,2]
[376038853,1753833054734,-151.0,0.00017153,2]
[376038854,1753833054744,-2008.79,0.00017153,2]
[376038855,1753833054755,-1815.66,0.00017153,2]
[376038856,1753833054765,-482.37,0.00017153,2]
[376038857,1753833054775,-400.0,0.00017153,2]
[376038858,1753833054786,-457.57,0.00017153,2]
[376038859,1753833054796,-3925.57,0.00017153,2]
[376038860,1753833054807,-583.49,0.00017153,2]
[376038861,1753833054818,-2199.78,0.00017153,2]
[376038862,1753833054830,-151.0,0.00017153,2]
[376038863,1753833054840,-151.0,0.00017153,2]
[376038864,1753833054851,-3480.32,0.00017153,2]
[376038865,1753833054864,-532.15,0.00017153,2]
[376038866,1753833054875,-400.0,0.00017153,2]
[376038867,1753833054886,-976.6,0.00017153,2]
[376038868,1753833054897,-1569.2,0.00017153,2]
[376038869,1753833054910,-720.51,0.00017153,2]
[376038870,1753833054922,-498.53,0.00017153,2]
[376038871,1753833054933,-581.42,0.00017153,2]
[376038872,1753833054944,-1161.49,0.00017153,2]
[376038873,1753833054957,-400.0,0.00017153,2]
[376038874,1753833054967,-2289.47,0.00017153,2]
[376038875,1753833054978,-726.14,0.00017153,2]
[376038876,1753833054990,-445.3,0.00017153,2]
[376038877,1753833055000,-648.74,0.00017153,2]
[376038878,1753833055011,-2351.53,0.00017153,2]
[376038879,1753833055023,-400.0,0.00017153,2]
[376038880,1753833055034,-2600.09,0.00017153,2]
[376038881,1753833055045,-633.33,0.00017153,2]
[376038882,1753833055056,-400.0,0.00017153,2]
[376038883,1753833055067,-717.51,0.00017153,2]
[376038884,1753833055078,-860.08,0.00017153,2]
[376038885,1753833055089,-1087.13,0.00017153,2]
[376038886,1753833055099,-1080.99,0.00017153,2]
[376038887,1753833055108,-644.72,0.00017153,2]
[376038888,1753833055119,-555.4,0.00017153,2]
[376038889,1753833055130,-713.81,0.00017153,2]
[376038890,1753833055140,-3896.4,0.00017153,2]
[376038891,1753833055150,-1161.33,0.00017153,2]
[376038892,1753833055161,-1188.927865,0.00017153,2]
[376038893,1753833055171,-1222.197201,0.00017153,2]
[376038894,1753833055181,-4002.61,0.00017153,2]
[376038895,1753833055191,-563.8,0.00017153,2]
[376038896,1753833055201,-2220.75,0.00017153,2]
[376038897,1753833055212,-998.71,0.00017153,2]
[376038898,1753833055224,-1005.971755,0.00017153,2]
[376038899,1753833055235,-2828.96,0.00017153,2]
[376038900,1753833055246,-400.0,0.00017153,2]
[376038901,1753833055258,-821.52,0.00017154,2]
[376038902,1753833055270,-1287.27,0.00017154,2]
[376038903,1753833055284,-1956.24,0.00017154,2]
[376038904,1753833055296,-1329.05,0.00017154,2]
[376038905,1753833055309,-1511.7,0.00017154,2]
[376038906,1753833055319,-476.83,0.00017154,2]
[376038907,1753833055330,-1133.71,0.00017154,2]
[376038908,1753833055340,-151.0,0.00017154,2]
[376038909,1753833055353,-2013.81,0.00017154,2]
[376038910,1753833055613,-553.35,0.00017154,2]
[376038911,1753833055624,-151.0,0.00017154,2]
[376038912,1753833055635,-151.0,0.00017154,2]
[376038913,1753833055646,-453.5,0.00017154,2]
[376038914,1753833055656,-405.87,0.00017154,2]
[376038915,1753833055666,-3346.15,0.00017154,2]
[376038916,1753833055676,-870.03,0.00017154,2]
[376038917,1753833055687,-624.78,0.00017154,2]
[376038918,1753833055697,-639.45,0.00017154,2]
[376038919,1753833055707,-1407.94,0.00017154,2]
[376038920,1753833055717,-400.0,0.00017154,2]
[376038921,1753833055727,-1248.47,0.00017154,2]
[376038922,1753833055737,-400.0,0.00017154,2]
[376038923,1753833055746,-400.0,0.00017154,2]
[376038924,1753833055756,-882.59,0.00017154,2]
[376038925,1753833055766,-564.95,0.00017154,2]
[376038926,1753833055776,-536.49,0.00017154,2]
[376038927,1753833055785,-946.17,0.00017154,2]
[376038928,1753833055795,-400.0,0.00017154,2]
[376038929,1753833055805,-626.75,0.00017154,2]
[376038930,1753833055814,-427.64,0.00017154,2]
[376038931,1753833055824,-431.69,0.00017154,2]
[376038932,1753833055834,-400.0,0.00017154,2]
[376038933,1753833055843,-905.94,0.00017154,2]
[376038934,1753833055853,-473.23,0.00017154,2]
[376038935,1753833055867,-427.91,0.00017154,2]
[376038936,1753833055878,-400.0,0.00017154,2]
[376038937,1753833055887,-1253.17,0.00017154,2]
[376038938,1753833055898,-400.0,0.00017154,2]
[376038939,1753833055907,-495.66,0.00017154,2]
[376038940,1753833055919,-876.92,0.00017154,2]
[376038941,1753833055928,-1673.44,0.00017154,2]
[376038942,1753833055939,-1964.1,0.00017154,2]
[376038943,1753833055949,-187.193857,0.00017154,2]
[376038944,1753833055960,-187.193857,0.00017154,2]
[376038945,1753833055970,-757.01,0.00017154,2]
[376038946,1753833055979,-10434.99,0.00017154,2]
[376038947,1753833055989,-1315.6,0.00017154,2]
[376038948,1753833055998,-2139.92,0.00017154,2]
[376038949,1753833056008,-1352.5,0.00017154,2]
[376038950,1753833056017,-1046.0,0.00017154,2]
[376038951,1753833056028,-1009.93,0.00017154,2]
[376038952,1753833056037,-2243.08,0.00017154,2]
[376038953,1753833056046,-1382.12091825,0.00017154,2]
[376038954,1753833056456,-738.08908175,0.00017154,2]
[376038955,1753833056466,-683.6,0.00017154,2]
[376038956,1753833056476,-1999.11,0.00017154,2]
[376038957,1753833056485,-447.45091925,0.00017154,2]
[376038958,1753833057157,-400.0,0.00016604,2]
[376038959,1753833057168,-455.38,0.00016604,2]
[376038960,1753833057178,-400.0,0.00016605,2]
[376038961,1753833057188,-158.18078759,0.00016878,2]
[376038962,1753833057198,-355.72,0.00016879,2]
[376038963,1753833057210,-1504.78908075,0.00017154,2]
[376038964,1753833057220,-499.94,0.00017154,2]
[376038965,1753833057231,-987.14,0.00017154,2]
[376038966,1753833057242,-1972.9,0.00017154,2]
[376038967,1753833057251,-1210.65,0.00017154,2]
[376038968,1753833057260,-2661.91,0.00017154,2]
[376038969,1753833057270,-234.40383598,0.00017154,2]
[376038970,1753833057281,-1114.34006,0.00017154,2]
[376038971,1753833057334,-352.67610402,0.00017154,2]
[376038972,1753833057343,-151.0,0.00017154,2]
[376038973,1753833057353,-96.32389598,0.00017154,2]
[376038974,1753833057430,-588.0,0.00017104,3]
[376038975,1753833057447,-790.23610402,0.00017154,2]
[376038976,1753833057462,-249.6,0.00017154,2]
[376038977,1753833057474,-9035.65789598,0.00017154,2]
[376038978,1753833058375,-400.0,0.00016604,2]
[376038979,1753833058387,-588.0,0.00016604,3]
[376038980,1753833058399,-400.0,0.00016604,2]
[376038981,1753833058411,-400.0,0.00016605,2]
[376038982,1753833058422,-200.06184243,0.00016605,2]
[376038990,1753833509687,507.0,0.0001497,2]
[376038991,1753833511365,720.0,0.00016,120]